[Event "14e Open International de Quenza"]
[Site "Quenza, France"]
[Date "2025.07.06"]
[Round "9.11"]
[White "Johannsdottir, Johanna Bjorg"]
[Black "Terpereau, Albin"]
[Result "1-0"]
[TimeControl "5min+3s"]
[WhiteElo "1997"]
[BlackElo "1881"]

1. e4 {[%clk 00:05:03]} e6 {[%clk 00:05:03]} 2. d3 {[%clk 00:05:03]} {[%emt
00:00:03]} d5 {[%clk 00:04:58]} {[%emt 00:00:09]} 3. Nd2 {[%clk 00:05:03]}
{[%emt 00:00:01]} Nf6 {[%clk 00:04:58]} {[%emt 00:00:02]} 4. Ngf3 {[%clk
00:05:03]} dxe4 {[%clk 00:04:52]} {[%emt 00:00:09]} 5. dxe4 {[%clk 00:05:03]}
{[%emt 00:00:01]} Bc5 {[%clk 00:04:52]} {[%emt 00:00:03]} 6. h3 {[%clk
00:04:58]} {[%emt 00:00:08]} O-O {[%clk 00:04:45]} {[%emt 00:00:10]} 7. Be2
{[%clk 00:04:58]} {[%emt 00:00:02]} a6 {[%clk 00:04:42]} {[%emt 00:00:06]} 8.
c3 {[%clk 00:04:58]} {[%emt 00:00:02]} b5 {[%clk 00:04:42]} {[%emt 00:00:01]} 9.
O-O {[%clk 00:04:56]} {[%emt 00:00:04]} Bb7 {[%clk 00:04:42]} {[%emt 00:00:03]}
10. Qc2 {[%clk 00:04:50]} {[%emt 00:00:10]} Nbd7 {[%clk 00:04:16]} {[%emt
00:00:29]} 11. e5 {[%clk 00:04:46]} {[%emt 00:00:07]} Nd5 {[%clk 00:04:14]}
{[%emt 00:00:05]} 12. Ne4 {[%clk 00:04:45]} {[%emt 00:00:04]} Ba7 {[%clk
00:03:58]} {[%emt 00:00:19]} 13. Neg5 {[%clk 00:04:43]} {[%emt 00:00:04]} g6
{[%clk 00:03:45]} {[%emt 00:00:16]} 14. Ne4 {[%clk 00:04:36]} {[%emt 00:00:10]}
Nc5 {[%clk 00:03:28]} {[%emt 00:00:20]} 15. Bg5 {[%clk 00:04:27]} {[%emt
00:00:12]} Qd7 {[%clk 00:02:49]} {[%emt 00:00:42]} 16. Nf6+ {[%clk 00:04:27]}
{[%emt 00:00:02]} Nxf6 {[%clk 00:02:49]} {[%emt 00:00:02]} 17. exf6 {[%clk
00:04:13]} {[%emt 00:00:17]} Rfd8 {[%clk 00:02:20]} {[%emt 00:00:33]} 18. Rad1
{[%clk 00:04:06]} {[%emt 00:00:10]} Qc6 {[%clk 00:02:20]} {[%emt 00:00:02]} 19.
Qc1 {[%clk 00:03:56]} {[%emt 00:00:13]} Ne4 {[%clk 00:02:01]} {[%emt 00:00:21]}
20. Bh4 {[%clk 00:03:30]} {[%emt 00:00:27]} Bc5 {[%clk 00:01:27]} {[%emt
00:00:39]} 21. Ne5 {[%clk 00:03:04]} {[%emt 00:00:29]} Qe8 {[%clk 00:01:11]}
{[%emt 00:00:18]} 22. Bf3 {[%clk 00:02:45]} {[%emt 00:00:22]} Nd6 {[%clk
00:00:41]} {[%emt 00:00:33]} 23. Rxd6 {[%clk 00:02:30]} {[%emt 00:00:18]} cxd6
{[%clk 00:00:17]} {[%emt 00:00:27]} 24. Bxb7 {[%clk 00:02:07]} {[%emt
00:00:26]} Ra7 {[%clk 00:00:17]} {[%emt 00:00:01]} 25. Bc6 {[%clk 00:02:07]}
{[%emt 00:00:02]} Qf8 {[%clk 00:00:17]} {[%emt 00:00:03]} 26. Ng4 {[%clk
00:02:04]} {[%emt 00:00:06]} Rc7 {[%clk 00:00:17]} {[%emt 00:00:03]} 27. Bf3
{[%clk 00:02:03]} {[%emt 00:00:03]} b4 {[%clk 00:00:17]} {[%emt 00:00:02]} 28.
c4 {[%clk 00:01:59]} {[%emt 00:00:07]} d5 {[%clk 00:00:17]} {[%emt 00:00:03]}
29. b3 {[%clk 00:01:59]} {[%emt 00:00:02]} dxc4 {[%clk 00:00:17]} {[%emt
00:00:02]} 30. bxc4 {[%clk 00:01:59]} {[%emt 00:00:02]} Rd3 {[%clk 00:00:16]}
{[%emt 00:00:04]} 31. Qf4 {[%clk 00:01:30]} {[%emt 00:00:31]} Bd6 {[%clk
00:00:14]} {[%emt 00:00:05]} 32. Qe4 {[%clk 00:01:29]} {[%emt 00:00:04]} Rd2
{[%clk 00:00:14]} {[%emt 00:00:04]} 33. Bg5 {[%clk 00:01:27]} {[%emt 00:00:04]}
Rxa2 {[%clk 00:00:12]} {[%emt 00:00:05]} 34. Bh6 {[%clk 00:01:27]} {[%emt
00:00:01]} Qc8 {[%clk 00:00:07]} {[%emt 00:00:09]} 35. Bg7 {[%clk 00:01:27]}
{[%emt 00:00:01]} h5 {[%clk 00:00:07]} {[%emt 00:00:03]} 36. Nh6+ {[%clk
00:01:16]} {[%emt 00:00:14]} Kh7 {[%clk 00:00:07]} 37. Qe3 {[%clk 00:01:06]}
{[%emt 00:00:12]} Bf8 {[%clk 00:00:07]} {[%emt 00:00:02]} 38. g4 {[%clk
00:00:48]} {[%emt 00:00:22]} Ra3 {[%clk 00:00:07]} 39. Qf4 {[%clk 00:00:48]}
{[%emt 00:00:02]} Bxg7 {[%clk 00:00:06]} {[%emt 00:00:04]} 40. fxg7 {[%clk
00:00:48]} {[%emt 00:00:01]} Kxg7 {[%clk 00:00:06]} {[%emt 00:00:01]} 41. gxh5
{[%clk 00:00:45]} {[%emt 00:00:05]} Rxc4 {[%clk 00:00:06]} {[%emt 00:00:01]} 42.
Qxf7+ {[%clk 00:00:45]} {[%emt 00:00:02]} Kxh6 {[%clk 00:00:06]} {[%emt
00:00:02]} 43. Qxg6# {[%clk 00:00:45]} {[%emt 00:00:01]} 1-0

[Event "14e Open International de Quenza"]
[Site "Quenza, France"]
[Date "2025.07.06"]
[Round "9.12"]
[White "De Seroux, Camille"]
[Black "Kurt, Sascha"]
[Result "0-1"]
[TimeControl "5min+3s"]
[WhiteElo "2039"]
[BlackElo "2303"]

1. e4 {[%clk 00:05:03]} {[%emt 00:00:01]} c5 {[%clk 00:05:03]} 2. Nc3 {[%clk
00:05:03]} {[%emt 00:00:01]} d6 {[%clk 00:05:03]} {[%emt 00:00:02]} 3. f4
{[%clk 00:05:03]} {[%emt 00:00:01]} g6 {[%clk 00:05:02]} {[%emt 00:00:04]} 4.
Nf3 {[%clk 00:05:03]} {[%emt 00:00:02]} Bg7 {[%clk 00:05:02]} {[%emt 00:00:02]}
5. a3 {[%clk 00:05:03]} {[%emt 00:00:02]} Nc6 {[%clk 00:05:00]} {[%emt
00:00:05]} 6. Bc4 {[%clk 00:05:03]} {[%emt 00:00:02]} e6 {[%clk 00:04:52]}
{[%emt 00:00:11]} 7. d3 {[%clk 00:05:03]} {[%emt 00:00:02]} Nge7 {[%clk
00:04:52]} {[%emt 00:00:02]} 8. Ba2 {[%clk 00:05:03]} {[%emt 00:00:02]} Rb8
{[%clk 00:04:51]} {[%emt 00:00:05]} 9. O-O {[%clk 00:04:49]} {[%emt 00:00:16]}
O-O {[%clk 00:04:50]} {[%emt 00:00:04]} 10. Qe1 {[%clk 00:04:47]} {[%emt
00:00:06]} Nd4 {[%clk 00:04:48]} {[%emt 00:00:06]} 11. Nxd4 {[%clk 00:04:36]}
{[%emt 00:00:14]} Bxd4+ {[%clk 00:04:33]} {[%emt 00:00:18]} 12. Kh1 {[%clk
00:04:36]} {[%emt 00:00:02]} b5 {[%clk 00:04:28]} {[%emt 00:00:07]} 13. Ne2
{[%clk 00:03:54]} {[%emt 00:00:44]} Bg7 {[%clk 00:04:28]} {[%emt 00:00:03]} 14.
Ng3 {[%clk 00:03:53]} {[%emt 00:00:05]} d5 {[%clk 00:04:04]} {[%emt 00:00:27]}
15. Be3 {[%clk 00:02:52]} {[%emt 00:01:03]} Bxb2 {[%clk 00:03:08]} {[%emt
00:00:59]} 16. Bxc5 {[%clk 00:02:28]} {[%emt 00:00:28]} d4 {[%clk 00:02:33]}
{[%emt 00:00:38]} 17. e5 {[%clk 00:02:06]} {[%emt 00:00:25]} Bc3 {[%clk
00:02:19]} {[%emt 00:00:17]} 18. Qf2 {[%clk 00:02:00]} {[%emt 00:00:09]} Bb7
{[%clk 00:01:50]} {[%emt 00:00:33]} 19. Rab1 {[%clk 00:01:49]} {[%emt
00:00:14]} Qd7 {[%clk 00:01:35]} {[%emt 00:00:18]} 20. Bxa7 {[%clk 00:01:35]}
{[%emt 00:00:17]} Ra8 {[%clk 00:01:35]} {[%emt 00:00:01]} 21. Bc5 {[%clk
00:01:35]} {[%emt 00:00:03]} Rfc8 {[%clk 00:01:27]} {[%emt 00:00:11]} 22. Bxe7
{[%clk 00:00:48]} {[%emt 00:00:50]} Qxe7 {[%clk 00:01:27]} {[%emt 00:00:02]} 23.
f5 {[%clk 00:00:43]} {[%emt 00:00:07]} exf5 {[%clk 00:01:13]} {[%emt 00:00:17]}
24. Nxf5 {[%clk 00:00:43]} {[%emt 00:00:02]} gxf5 {[%clk 00:01:09]} {[%emt
00:00:07]} 25. Qxf5 {[%clk 00:00:43]} {[%emt 00:00:01]} Rc7 {[%clk 00:00:39]}
{[%emt 00:00:34]} 26. Rf4 {[%clk 00:00:37]} {[%emt 00:00:09]} Kh8 {[%clk
00:00:33]} {[%emt 00:00:07]} 27. Bxf7 {[%clk 00:00:13]} {[%emt 00:00:29]} Rxa3
{[%clk 00:00:17]} {[%emt 00:00:19]} 28. e6 {[%clk 00:00:13]} {[%emt 00:00:01]}
Rc5 {[%clk 00:00:15]} {[%emt 00:00:05]} 29. Qh3 {[%clk 00:00:08]} {[%emt
00:00:08]} Rg5 {[%clk 00:00:15]} {[%emt 00:00:01]} 30. Rg4 {[%clk 00:00:08]}
{[%emt 00:00:03]} Ra1 {[%clk 00:00:12]} {[%emt 00:00:06]} 31. Rxa1 {[%clk
00:00:08]} {[%emt 00:00:02]} Bxa1 {[%clk 00:00:12]} 32. Rxg5 Qxg5 {[%clk
00:00:12]} 33. Bh5 {[%clk 00:00:05]} {[%emt 00:00:04]} Qc1+ {[%clk 00:00:12]}
{[%emt 00:00:01]} 0-1